fUSD/lending_fUSD_20260418
["ID","MTS","AMOUNT","RATE_DAILY","PERIOD"]
[420690224,1776458527227,-1780.27119,0.00043,120]
[420690225,1776458527258,-160.0,0.00043,120]
[420690226,1776458527290,-1000.0,0.00043,120]
[420690227,1776458527326,-104014.80506998,0.00043,120]
[420690228,1776458527358,-1000.0,0.00043,30]
[420690229,1776458527388,-511.22310645,0.00043,90]
[420690230,1776458527419,-2000.0,0.00043,120]
[420690231,1776458527449,-10000.0,0.00043,120]
[420690232,1776458527480,-10000.0,0.00043,60]
[420690233,1776458527510,-10016.89853983,0.00043,120]
[420690234,1776458527538,-211.7,0.00043,120]
[420690235,1776458527567,-39985.72002859,0.00043,30]
[420690236,1776458527594,-500.0,0.00043,120]
[420690237,1776458527623,-50000.0,0.00043,120]
[420690238,1776458527652,-265.91203013,0.00043,120]
[420690239,1776458527683,-541.01844902,0.00043,120]
[420690240,1776458527713,-50000.0,0.00043,30]
[420690241,1776458527742,-5997.34383729,0.00043,30]
[420690242,1776458527772,-20000.0,0.00043,120]
[420690243,1776458527802,-20000.0,0.00043,120]
[420690244,1776458527831,-10000.0,0.00043,120]
[420690245,1776458527860,-600.0,0.00043,30]
[420690246,1776458527889,-1000.0,0.00043,120]
[420690247,1776458527918,-2000.0,0.00043,120]
[420690248,1776458527947,-2321.28010474,0.00043,30]
[420690249,1776458527977,-1000.0,0.00043,120]
[420690250,1776458528008,-337.02083885,0.00043,120]
[420690251,1776458528037,-932889.2544984,0.00043,120]
[420690252,1776458528065,-3020096.37442708,0.00043,120]
[420690253,1776458528093,-561.511676,0.00043,60]
[420690254,1776458528120,-20000.0,0.00043,120]
[420690255,1776458528147,-20000.0,0.00043,120]
[420690256,1776458528175,-20000.0,0.00043,120]
[420690257,1776458528204,-20000.0,0.00043,120]
[420690258,1776458528235,-20000.0,0.00043,120]
[420690259,1776458528263,-21000.0,0.00043,120]
[420690260,1776458528291,-21000.0,0.00043,120]
[420690261,1776458528320,-21000.0,0.00043,120]
[420690262,1776458528348,-50000.0,0.00043,30]
[420690263,1776458528523,-707.0,0.00043,120]
[420690264,1776458528552,-333.84161067,0.00043,30]
[420690265,1776458528579,-1000.0,0.00043,120]
[420690266,1776458528607,-1000.0,0.00043,120]
[420690267,1776458528635,-500.0,0.00043,120]
[420690268,1776458528662,-1000.0,0.00043,120]
[420690269,1776458528690,-8055.0,0.00043,120]
[420690270,1776458528718,-1000.0,0.00043,120]
[420690271,1776458528746,-1000.0,0.00043,120]
[420690272,1776458528774,-1000.0,0.00043,120]
[420690273,1776458528802,-1000.0,0.00043,120]
[420690274,1776458528829,-332.49951279,0.00043,120]
[420690275,1776458528856,-7430.88139183,0.00043,120]
[420690276,1776458528884,-20337.45,0.00043,120]
[420690277,1776458528912,-2220.7319538,0.00043,120]
[420690278,1776458528939,-1989.99667141,0.00043,120]
[420690279,1776458528967,-21748.58495145,0.00043,120]
[420690280,1776458528994,-70823.00906282,0.00043,30]
[420690281,1776458529021,-4428.51401532,0.00043,120]
[420690282,1776458529047,-21800.0,0.00043,120]
[420690283,1776458529075,-2903.39122374,0.00043,120]
[420690284,1776458529104,-2000.0,0.00043,90]
[420690285,1776458529131,-2959.71493443,0.00043,30]
[420690286,1776458529157,-7396.81,0.00043,120]
[420690287,1776458529185,-153.0,0.00043,120]
[420690288,1776458529213,-7584.24666408,0.00043,120]
[420690289,1776458529240,-3129.0,0.00043,120]
[420690290,1776458529268,-9109.0,0.00043,120]
[420690291,1776458529295,-37224.39716151,0.00043,120]
[420690292,1776458529323,-8822.96961664,0.00043,120]
[420690293,1776458529350,-73202.0,0.00043,90]
[420690294,1776458529379,-475.0,0.00043,30]
[420690295,1776458529407,-708.0,0.00043,30]
[420690296,1776458529435,-236.0,0.00043,30]
[420690297,1776458529462,-3000.0,0.00043,120]
[420690298,1776458529490,-5000.0,0.00043,30]
[420690299,1776458529517,-151.0,0.00043,120]
[420690300,1776458529547,-151.0,0.00043,120]
[420690301,1776458529576,-151.0,0.00043,120]
[420690302,1776458529604,-221.287025,0.00043,120]
[420690303,1776458529633,-151.0,0.00043,120]
[420690304,1776458529662,-404.906257,0.00043,120]
[420690305,1776458529690,-404.906257,0.00043,120]
[420690306,1776458529717,-404.906257,0.00043,120]
[420690307,1776458529746,-404.906257,0.00043,120]
[420690308,1776458529774,-691.768611,0.00043,120]
[420690309,1776458529801,-691.768611,0.00043,120]
[420690310,1776458529830,-691.768611,0.00043,120]
[420690311,1776458529857,-691.768611,0.00043,120]
[420690312,1776458529884,-500.0,0.00043,120]
[420690313,1776458529912,-500.0,0.00043,120]
[420690314,1776458529941,-500.0,0.00043,120]
[420690315,1776458529968,-500.0,0.00043,120]
[420690316,1776458529997,-1000.0,0.00043,120]
[420690317,1776458530025,-1000.0,0.00043,120]
[420690318,1776458530053,-1000.0,0.00043,120]
[420690319,1776458530081,-1000.0,0.00043,120]
[420690320,1776458530108,-1000.0,0.00043,120]
[420690321,1776458530135,-1000.0,0.00043,120]
[420690322,1776458530163,-1000.0,0.00043,120]
[420690323,1776458530192,-1000.0,0.00043,120]
[420690324,1776458530220,-1000.0,0.00043,120]
[420690325,1776458530247,-1000.0,0.00043,120]
[420690326,1776458530274,-1000.0,0.00043,120]
[420690327,1776458530302,-1000.0,0.00043,120]
[420690328,1776458530331,-1000.0,0.00043,120]
[420690329,1776458530361,-1000.0,0.00043,120]
[420690330,1776458530392,-1000.0,0.00043,120]
[420690331,1776458530422,-1000.0,0.00043,120]
[420690332,1776458530451,-1000.0,0.00043,120]
[420690333,1776458530480,-1000.0,0.00043,120]
[420690334,1776458530510,-1000.0,0.00043,120]
[420690335,1776458530539,-1000.0,0.00043,120]
[420690336,1776458530569,-1000.0,0.00043,120]
[420690337,1776458530602,-1000.0,0.00043,120]
[420690338,1776458530635,-1000.0,0.00043,120]
[420690339,1776458530666,-1000.0,0.00043,120]
[420690340,1776458530695,-1000.0,0.00043,120]
[420690341,1776458530723,-1000.0,0.00043,120]
[420690342,1776458530753,-1000.0,0.00043,120]
[420690343,1776458530782,-1000.0,0.00043,120]
[420690344,1776458530811,-1000.0,0.00043,120]
[420690345,1776458530840,-1000.0,0.00043,120]
[420690346,1776458530869,-1000.0,0.00043,120]
[420690347,1776458530898,-1865.51792262,0.00043,120]
[420690348,1776458530926,-188.435392,0.00043,120]
[420690349,1776458530955,-188.435392,0.00043,120]
[420690350,1776458530985,-188.435392,0.00043,120]
[420690351,1776458531014,-151.0,0.00043,120]
[420690352,1776458531366,-233.583542,0.00043,120]
[420690353,1776458531396,-188.435392,0.00043,120]
[420690354,1776458531424,-151.0,0.00043,120]
[420690355,1776458531452,-151.0,0.00043,120]
[420690356,1776458531480,-151.0,0.00043,120]
[420690357,1776458531507,-151.0,0.00043,120]
[420690358,1776458531535,-3524.09739708,0.00043,120]
[420690359,1776458531562,-27500.0,0.00043,120]
[420690360,1776458531591,-151.0,0.00043,120]
[420690361,1776458531623,-151.0,0.00043,120]
[420690362,1776458531652,-151.0,0.00043,120]
[420690363,1776458531684,-151.0,0.00043,120]
[420690364,1776458531714,-315.35310154,0.00043,120]
[420690365,1776458531741,-1250.0,0.00043,120]
[420690366,1776458531768,-750.0,0.00043,120]
[420690367,1776458531796,-151.0,0.00043,120]
[420690368,1776458531825,-261.185341,0.00043,60]
[420690369,1776458531852,-203.173516,0.00043,120]
[420690370,1776458531881,-507.994835,0.00043,120]
[420690371,1776458531909,-261.185341,0.00043,60]
[420690372,1776458531939,-507.994835,0.00043,120]
[420690373,1776458531967,-261.185341,0.00043,60]
[420690374,1776458531995,-392.395422,0.00043,120]
[420690375,1776458532024,-507.994835,0.00043,120]
[420690376,1776458532053,-261.185341,0.00043,60]
[420690377,1776458532082,-507.994835,0.00043,120]
[420690378,1776458532110,-392.395422,0.00043,120]
[420690379,1776458532139,-392.395422,0.00043,120]
[420690380,1776458532167,-392.395422,0.00043,120]
[420690381,1776458532196,-171.0,0.00043,90]
[420690382,1776458532226,-1021.311841,0.00043,120]
[420690383,1776458532254,-1021.311841,0.00043,120]
[420690384,1776458532284,-1021.311841,0.00043,120]
[420690385,1776458532313,-1021.311841,0.00043,120]
[420690386,1776458532341,-500.0,0.00043,120]
[420690387,1776458532369,-200.0,0.00043002,106]
[420690388,1776458532398,-150.0,0.00043005,120]
[420690389,1776458532427,-1500.0,0.00043013,80]
[420690390,1776458532454,-9600.0,0.00043014,120]
[420690391,1776458532482,-10000.0,0.00043014,30]
[420690392,1776458532510,-159.04,0.00043029,30]
[420690393,1776458532537,-5333.5192,0.00043029,30]
[420690394,1776458532566,-500.0,0.00043056,120]
[420690395,1776458532595,-2000.0,0.00043062,120]
[420690396,1776458532625,-300.0,0.00043068,120]
[420690397,1776458532659,-1101.33,0.00043081,120]
[420690398,1776458532689,-191.93,0.00043097,120]
[420690399,1776458532718,-150.0,0.00043097,120]
[420690400,1776458532746,-29018.49546132,0.000431,120]
[420690401,1776458532777,-200.0,0.00043119,109]
[420690402,1776458532805,-1357.82,0.00043123,30]
[420690403,1776458532833,-770.45601862,0.00043137,120]
[420690404,1776458532861,-770.45601862,0.0004314,120]
[420690405,1776458532888,-284.34774268,0.00043151,120]
[420690406,1776458532918,-1199.0,0.00043178,120]
[420690407,1776458532946,-3000.0,0.00043178,120]
[420690408,1776458532975,-213.26080701,0.00043181,30]
[420690409,1776458533006,-1101.33,0.00043181,120]
[420690410,1776458533033,-150.0,0.00043184,120]
[420690411,1776458533061,-150.0,0.00043184,120]
[420690412,1776458533089,-150.0,0.00043197,120]
[420690413,1776458533117,-2000.0,0.00043198,120]
[420690414,1776458533145,-1000.0,0.000432,120]
[420690415,1776458533173,-500.0,0.000432,120]
[420690416,1776458533201,-200.0,0.00043206,112]
[420690417,1776458533234,-909391.03342679,0.0004321,120]
[420690419,1776458584399,-500.0,0.00028947,120]
[420690420,1776458584428,-500.0,0.00030508,120]
[420690421,1776458584457,-500.0,0.0003207,120]
[420690422,1776458584486,-500.0,0.00032867,60]
[420690423,1776458584515,-500.0,0.00032867,60]
[420690424,1776458584543,-500.0,0.00032867,60]
[420690425,1776458584571,-500.0,0.00032867,60]
[420690426,1776458584600,-500.0,0.00032867,60]
[420690427,1776458584632,-500.0,0.00032867,60]
[420690428,1776458584661,-500.0,0.00032867,60]
[420690429,1776458584690,-500.0,0.00032867,60]
[420690430,1776458584719,-500.0,0.00032867,60]
[420690431,1776458584748,-500.0,0.00032867,60]
[420690432,1776458585273,-500.0,0.00032867,60]
[420690433,1776458585311,-500.0,0.00032867,60]
[420690434,1776458585342,-500.0,0.00032867,60]
[420690435,1776458585370,-500.0,0.00032867,60]
[420690436,1776458585399,-500.0,0.00032867,60]
[420690437,1776458585427,-500.0,0.00032867,60]
[420690438,1776458585459,-500.0,0.00032867,60]
[420690439,1776458585489,-500.0,0.00032867,60]
[420690440,1776458585517,-198.5198919,0.00032867,60]
[420690441,1776458585546,-500.0,0.00032867,60]
[420690442,1776458585575,-500.0,0.00032867,60]
[420690443,1776458585604,-500.0,0.00032867,60]
[420690444,1776458585634,-500.0,0.00032867,60]
[420690445,1776458585662,-592.8046874,0.00032867,60]
[420690446,1776458585693,-500.0,0.00033631,120]
[420690447,1776458585723,-500.0,0.00035193,120]
[420690448,1776458585752,-500.0,0.00036755,120]
[420690449,1776458585781,-500.0,0.00038316,120]
[420690450,1776458585810,-343.59799425,0.00039497,56]
[420690451,1776458585844,-500.0,0.00039878,120]
[420690452,1776458585876,-643.0,0.0004059,120]
[420690453,1776458585908,-5371.0,0.000416,120]
[420690454,1776458585939,-5371.0,0.000416,120]
[420690455,1776458585968,-5371.0,0.000416,120]
[420690456,1776458585999,-5371.0,0.000416,120]
[420690457,1776458586028,-5371.0,0.000416,120]
[420690458,1776458586059,-5371.0,0.000416,120]
[420690459,1776458586088,-5371.0,0.000416,120]
[420690460,1776458586117,-5371.0,0.000416,120]
[420690461,1776458586146,-5371.0,0.000416,120]
[420690462,1776458586174,-5371.0,0.000416,120]
[420690463,1776458586204,-495.0,0.00041647,120]
[420690464,1776458586233,-150.0,0.00041797,120]
[420690465,1776458586261,-495.0,0.00041826,120]
[420690466,1776458586289,-495.0,0.00041826,120]
[420690467,1776458586319,-495.0,0.00041826,120]
[420690468,1776458586348,-495.0,0.00041826,120]
[420690469,1776458586376,-495.0,0.00041826,120]
[420690470,1776458586405,-495.0,0.00041826,120]
[420690471,1776458586445,-495.0,0.00041826,120]
[420690472,1776458586476,-495.0,0.00041826,120]
[420690473,1776458586505,-371.0,0.00041826,120]
[420690474,1776458586534,-150.0,0.00042071,120]
[420690475,1776458586564,-150.0,0.00042345,120]
[420690476,1776458586595,-1000.0,0.00042465,120]
[420690477,1776458586625,-192.86,0.000425,46]
[420690478,1776458586655,-150.0,0.00042619,120]
[420690479,1776458586687,-151.0,0.00042629,120]
[420690480,1776458586718,-517.0,0.00042629,120]
[420690481,1776458586747,-517.0,0.00042629,120]
[420690482,1776458586776,-151.0,0.00042629,120]
[420690483,1776458586805,-517.0,0.00042629,120]
[420690484,1776458586834,-151.4283214,0.00042629,120]
[420690485,1776458586864,-517.0,0.00042629,120]
[420690486,1776458586894,-517.0,0.00042629,120]
[420690487,1776458586926,-521.32401571,0.00042629,120]
[420690488,1776458586964,-240.0,0.0004263,92]
[420690489,1776458586998,-825.0,0.00042878,60]
[420690490,1776458587030,-151.0,0.0004288,120]
[420690491,1776458587063,-151.0,0.0004288,120]
[420690492,1776458587095,-151.0,0.0004288,120]
[420690493,1776458587128,-259.384368,0.0004288,120]
[420690494,1776458587160,-151.0,0.0004288,120]
[420690495,1776458587192,-184.30482,0.0004288,120]
[420690496,1776458587224,-150.0,0.00042893,120]
[420690497,1776458587258,-151.0,0.00043,120]
[420690498,1776458587289,-151.0,0.00043,120]
[420690499,1776458587321,-7196.56,0.00043,45]
[420690500,1776458587352,-10851.98,0.00043,45]
[420690501,1776458587384,-39848.75,0.00043,45]
[420690502,1776458587415,-151.0,0.00043,120]
[420690503,1776458587444,-27500.0,0.00043,120]
[420690504,1776458587480,-151.0,0.00043,120]
[420690505,1776458587512,-395.72056414,0.00043,120]
[420690506,1776458587545,-6224.22,0.00043,120]
[420690507,1776458587577,-17113.43,0.00043,120]
[420690508,1776458587609,-868.98318955,0.00043,120]
[420690509,1776458587641,-750.0,0.00043,120]
[420690510,1776458587672,-171.0,0.00043,90]
[420690511,1776458587710,-825.0,0.00043002,60]
[420690512,1776458587743,-825.0,0.00043126,60]
[420690513,1776458587774,-150.0,0.00043167,120]
[420690514,1776458587808,-4090608.96657321,0.0004321,120]
[420690515,1776458587840,-404.906257,0.0004321,120]
[420690516,1776458587874,-404.906257,0.0004321,120]
[420690517,1776458587909,-404.906257,0.0004321,120]
[420690518,1776458587942,-404.906257,0.0004321,120]
[420690519,1776458587974,-691.768611,0.0004321,120]
[420690520,1776458588012,-691.768611,0.0004321,120]
[420690521,1776458588045,-691.768611,0.0004321,120]
[420690522,1776458588076,-691.768611,0.0004321,120]
[420690523,1776458588107,-500.0,0.0004321,120]
[420690524,1776458588138,-500.0,0.0004321,120]
[420690525,1776458588167,-500.0,0.0004321,120]
[420690526,1776458588200,-500.0,0.0004321,120]
[420690527,1776458588231,-188.435392,0.0004321,120]
[420690528,1776458588261,-188.435392,0.0004321,120]
[420690529,1776458588290,-188.435392,0.0004321,120]
[420690530,1776458588323,-188.435392,0.0004321,120]
[420690531,1776458588354,-151.0,0.0004321,120]
[420690532,1776458588384,-151.0,0.0004321,120]
[420690533,1776458588413,-151.0,0.0004321,120]
[420690534,1776458588442,-282.761967,0.0004321,120]
[420690535,1776458588472,-151.0,0.0004321,120]
[420690536,1776458588502,-261.185341,0.0004321,60]
[420690537,1776458588991,-507.994835,0.0004321,120]
[420690538,1776458589021,-261.185341,0.0004321,60]
[420690539,1776458589052,-507.994835,0.0004321,120]
[420690540,1776458589081,-261.185341,0.0004321,60]
[420690541,1776458589111,-392.395422,0.0004321,120]
[420690542,1776458589140,-507.994835,0.0004321,120]
[420690543,1776458589169,-261.185341,0.0004321,60]
[420690544,1776458589198,-507.994835,0.0004321,120]
[420690545,1776458589226,-392.395422,0.0004321,120]
[420690546,1776458589254,-392.395422,0.0004321,120]
[420690547,1776458589281,-392.395422,0.0004321,120]
[420690548,1776458589309,-1021.311841,0.0004321,120]
[420690549,1776458589352,-1021.311841,0.0004321,120]
[420690550,1776458589382,-1021.311841,0.0004321,120]
[420690551,1776458589411,-1021.311841,0.0004321,120]
[420690552,1776458589441,-151.0,0.0004321,120]
[420690553,1776458589470,-151.0,0.0004321,120]
[420690554,1776458589499,-151.0,0.0004321,120]
[420690555,1776458589527,-151.0,0.0004321,120]
[420690556,1776458589556,-9887.0,0.0004321,60]
[420690557,1776458589586,-552.0,0.0004321,60]
[420690558,1776458589615,-3594.0,0.0004321,60]
[420690559,1776458589645,-300.0,0.00043233,120]
[420690560,1776458589675,-11160.83,0.0004325,120]
[420690561,1776458589705,-825.0,0.00043251,60]
[420690562,1776458589736,-200.0,0.0004327,113]
[420690563,1776458589765,-187.73,0.00043278,120]
[420690564,1776458589796,-1101.33,0.00043281,120]
[420690565,1776458589826,-1500.0,0.00043287,90]
[420690566,1776458589864,-9600.0,0.00043288,90]
[420690567,1776458589896,-1000.0,0.000433,120]
[420690568,1776458589928,-1000.0,0.000433,120]
[420690569,1776458589959,-171.0,0.000433,120]
[420690570,1776458589991,-529.0,0.00043316,120]
[420690571,1776458590022,-200.0,0.00043318,115]
[420690572,1776458590054,-588.0,0.00043326,120]
[420690573,1776458590087,-2000.0,0.00043334,120]
[420690574,1776458590119,-300.0,0.00043342,120]
[420690575,1776458590149,-15000.0,0.0004335,120]
[420690576,1776458590181,-200.0,0.00043353,116]
[420690577,1776458590212,-825.0,0.00043375,90]
[420690578,1776458590243,-200.0,0.00043379,117]
[420690579,1776458590275,-50000.0,0.0004338,120]
[420690580,1776458590308,-1101.33,0.00043381,120]
[420690581,1776458590339,-200.0,0.00043399,118]
[420690582,1776458590376,-1000.0,0.000434,60]
[420690583,1776458590411,-500.0,0.000434,120]
[420690584,1776458590445,-13544.13,0.000434,90]
[420690585,1776458590475,-3139.343,0.000434,120]
[420690586,1776458590504,-3139.343,0.000434,120]
[420690587,1776458590535,-3139.34,0.000434,90]
[420690588,1776458590566,-378.4214,0.000434,120]
[420690589,1776458590599,-238.62965755,0.00043408,120]
[420690590,1776458590631,-200.0,0.00043413,118]
[420690591,1776458590665,-200.0,0.00043424,119]
[420690592,1776458590696,-200.0,0.00043432,119]
[420690593,1776458590730,-200.0,0.00043437,119]
[420690594,1776458590762,-150.0,0.00043441,120]
[420690595,1776458590795,-200.0,0.00043442,120]
[420690596,1776458590831,-200.0,0.00043445,120]
[420690597,1776458590868,-200.0,0.00043447,120]
[420690598,1776458590904,-200.0,0.00043449,120]
[420690599,1776458590938,-15000.0,0.0004345,120]
[420690600,1776458590971,-285.0,0.0004345,120]
[420690601,1776458591004,-200.0,0.0004345,120]
[420690602,1776458591039,-200.0,0.00043451,120]
[420690603,1776458591072,-1199.0,0.00043452,120]
[420690604,1776458591105,-300.0,0.00043452,120]
[420690605,1776458591138,-200.0,0.00043452,120]
[420690606,1776458591170,-200.0,0.00043452,120]
[420690607,1776458591205,-150.0,0.00043458,120]
[420690608,1776458591235,-150.0,0.00043458,120]
[420690609,1776458591265,-167.53423658,0.00043466,120]
[420690610,1776458591294,-2000.0,0.00043469,120]
[420690611,1776458591325,-11411.4,0.00043469,117]
[420690612,1776458591356,-1101.33,0.00043481,120]
[420690613,1776458591386,-50000.0,0.0004349,120]
[420690614,1776458591416,-500.0,0.000435,90]
[420690615,1776458591445,-2000.0,0.000435,120]
[420690616,1776458591476,-1000.0,0.000435,120]
[420690617,1776458591506,-500.0,0.000435,120]
[420690618,1776458591535,-1000.0,0.000435,120]
[420690619,1776458591565,-2000.0,0.000435,120]
[420690620,1776458591596,-1153.52408845,0.000435,120]
[420690621,1776458591627,-1000.0,0.000435,120]
[420690622,1776458591658,-502.08160882,0.000435,120]
[420690623,1776458591688,-50000.0,0.000435,120]
[420690624,1776458591719,-3497.48,0.000435,120]
[420690625,1776458591755,-6348.71,0.000435,120]
[420690626,1776458591788,-17455.7,0.000435,120]
[420690627,1776458591820,-825.0,0.000435,90]
[420690628,1776458591851,-500.0,0.000435,120]
[420690629,1776458591885,-152.9148582,0.00043528,120]
[420690630,1776458591916,-15000.0,0.0004355,120]
[420690631,1776458591948,-1500.0,0.00043561,100]
[420690632,1776458591978,-270.0,0.00043561,120]
[420690633,1776458592009,-200.0,0.00043561,120]
[420690634,1776458592041,-200.0,0.00043561,120]
[420690635,1776458592072,-200.0,0.00043561,120]
[420690636,1776458592104,-770.45601862,0.00043561,120]
[420690637,1776458592136,-670.0,0.00043562,120]
[420690638,1776458592167,-670.0,0.00043562,120]
[420690639,1776458592199,-670.0,0.00043562,120]
[420690640,1776458592691,-670.0,0.00043562,120]
[420690641,1776458592722,-670.0,0.00043562,120]
[420690642,1776458592751,-670.0,0.00043562,120]
[420690643,1776458592780,-670.0,0.00043562,120]
[420690644,1776458592808,-670.0,0.00043562,120]
[420690645,1776458592839,-670.0,0.00043562,120]
[420690646,1776458592869,-670.0,0.00043562,120]
[420690647,1776458592899,-670.0,0.00043562,120]
[420690648,1776458592930,-670.0,0.00043562,120]
[420690649,1776458592961,-670.0,0.00043562,120]
[420690650,1776458592991,-670.0,0.00043562,120]
[420690651,1776458593022,-670.0,0.00043562,120]
[420690652,1776458593052,-670.0,0.00043562,120]
[420690653,1776458593083,-670.0,0.00043562,120]
[420690654,1776458593114,-670.0,0.00043562,120]
[420690655,1776458593145,-670.0,0.00043562,120]
[420690656,1776458593175,-670.0,0.00043562,120]
[420690657,1776458593206,-670.0,0.00043562,120]
[420690658,1776458593237,-670.0,0.00043562,120]
[420690659,1776458593270,-670.0,0.00043562,120]
[420690660,1776458593304,-670.0,0.00043562,120]
[420690661,1776458593336,-670.0,0.00043562,120]
[420690662,1776458593370,-670.0,0.00043562,120]
[420690663,1776458593400,-670.0,0.00043562,120]
[420690664,1776458593429,-670.0,0.00043562,120]
[420690665,1776458593458,-670.0,0.00043562,120]
[420690666,1776458593488,-670.0,0.00043562,120]
[420690667,1776458593518,-669.0,0.00043562,120]
[420690668,1776458593548,-669.0,0.00043562,120]
[420690669,1776458593577,-669.0,0.00043562,120]
[420690670,1776458593606,-669.0,0.00043562,120]
[420690671,1776458593636,-669.0,0.00043562,120]
[420690672,1776458593668,-669.0,0.00043562,120]
[420690673,1776458593698,-669.0,0.00043562,120]
[420690674,1776458593727,-669.0,0.00043562,120]
[420690675,1776458593755,-669.0,0.00043562,120]
[420690676,1776458593783,-669.0,0.00043562,120]
[420690677,1776458593813,-669.0,0.00043562,120]
[420690678,1776458593843,-669.0,0.00043562,120]
[420690679,1776458593873,-669.0,0.00043562,120]
[420690680,1776458593903,-669.0,0.00043562,120]
[420690681,1776458593932,-669.0,0.00043562,120]
[420690682,1776458593963,-669.0,0.00043562,120]
[420690683,1776458593993,-669.0,0.00043562,120]
[420690684,1776458594025,-669.0,0.00043562,120]
[420690685,1776458594055,-669.0,0.00043562,120]
[420690686,1776458594085,-669.0,0.00043562,120]
[420690687,1776458594115,-669.0,0.00043562,120]
[420690688,1776458594145,-669.0,0.00043562,120]
[420690689,1776458594176,-669.0,0.00043562,120]
[420690690,1776458594207,-669.0,0.00043562,120]
[420690691,1776458594236,-669.0,0.00043562,120]
[420690692,1776458594266,-669.0,0.00043562,120]
[420690693,1776458594296,-669.0,0.00043562,120]
[420690694,1776458594327,-669.0,0.00043562,120]
[420690695,1776458594356,-669.0,0.00043562,120]
[420690696,1776458594385,-669.0,0.00043562,120]
[420690697,1776458594415,-669.0,0.00043562,120]
[420690698,1776458594446,-669.0,0.00043562,120]
[420690699,1776458594475,-669.0,0.00043562,120]
[420690700,1776458594508,-669.0,0.00043562,120]
[420690701,1776458594539,-669.0,0.00043562,120]
[420690702,1776458594569,-669.0,0.00043562,120]
[420690703,1776458594600,-669.0,0.00043562,120]
[420690704,1776458594630,-669.0,0.00043562,120]
[420690705,1776458594660,-669.0,0.00043562,120]
[420690706,1776458594690,-669.0,0.00043562,120]
[420690707,1776458594721,-669.0,0.00043562,120]
[420690708,1776458594752,-669.0,0.00043562,120]
[420690709,1776458594781,-474.0,0.00043562,120]
[420690710,1776458594810,-474.0,0.00043562,120]
[420690711,1776458594839,-474.0,0.00043562,120]
[420690712,1776458594868,-474.0,0.00043562,120]
[420690713,1776458594900,-474.0,0.00043562,120]
[420690714,1776458594932,-474.0,0.00043562,120]
[420690715,1776458594963,-474.0,0.00043562,120]
[420690716,1776458594992,-474.0,0.00043562,120]
[420690717,1776458595023,-474.0,0.00043562,120]
[420690718,1776458595052,-474.0,0.00043562,120]
[420690719,1776458595082,-474.0,0.00043562,120]
[420690720,1776458595112,-474.0,0.00043562,120]
[420690721,1776458595142,-474.0,0.00043562,120]
[420690722,1776458595172,-474.0,0.00043562,120]
[420690723,1776458595201,-474.0,0.00043562,120]
[420690724,1776458595231,-474.0,0.00043562,120]